fUSD/lending_fUSD_20250807
["ID","MTS","AMOUNT","RATE_DAILY","PERIOD"]
[377822708,1754567439869,-400.0,0.00019981,2]
[377822710,1754567439881,-400.0,0.00019981,2]
[377822712,1754567439893,-511.96,0.00019981,2]
[377822715,1754567439906,-400.0,0.00019981,2]
[377822717,1754567439919,-401.45185193,0.00019981,2]
[377822719,1754567439931,-344.31928004,0.00019981,2]
[377822861,1754567441255,-55.68071996,0.00019981,2]
[377822863,1754567441265,-400.0,0.00019981,2]
[377822865,1754567441275,-400.0,0.00019981,2]
[377822867,1754567441284,-145.50308076,0.00019981,2]
[377822869,1754567441296,-254.49691924,0.00019981,2]
[377822871,1754567441305,-698.47,0.00019981,2]
[377822873,1754567441314,-400.0,0.00019981,2]
[377822875,1754567441323,-1887.73,0.00019981,2]
[377822877,1754567441332,-400.0,0.00019981,2]
[377822878,1754567441341,-188.41531459,0.00019981,2]
[377822887,1754567441418,-211.58468541,0.00019981,2]
[377822889,1754567441427,-400.0,0.00019981,2]
[377822891,1754567441437,-794.07,0.00019981,2]
[377822893,1754567441447,-400.0,0.00019981,2]
[377822895,1754567441457,-1157.65,0.00019981,2]
[377822897,1754567441466,-404.87598643,0.00019981,2]
[377822899,1754567441475,-400.0,0.00019981,2]
[377822901,1754567441484,-936.54,0.00019981,2]
[377822903,1754567441497,-400.0,0.00019981,2]
[377822905,1754567441509,-1563.41,0.00019981,2]
[377822907,1754567441518,-400.0,0.00019981,2]
[377822909,1754567441527,-400.0,0.00019981,2]
[377822911,1754567441536,-400.0,0.00019981,2]
[377822913,1754567441547,-550.81,0.00019981,2]
[377822915,1754567441556,-1314.34,0.00019981,2]
[377822917,1754567441566,-444.24,0.00019981,2]
[377822919,1754567441576,-400.0,0.00019981,2]
[377822921,1754567441586,-549.02,0.00019981,2]
[377822923,1754567441595,-951.32,0.00019981,2]
[377822925,1754567441604,-1437.93,0.00019981,2]
[377822927,1754567441614,-400.0,0.00019981,2]
[377822929,1754567441623,-400.0,0.00019981,2]
[377822931,1754567441633,-1481.0,0.00019981,2]
[377822933,1754567441642,-400.0,0.00019981,2]
[377822935,1754567441652,-1227.11,0.00019981,2]
[377822937,1754567441661,-400.0,0.00019981,2]
[377822939,1754567441670,-873.7,0.00019981,2]
[377822941,1754567441680,-400.0,0.00019981,2]
[377822943,1754567441689,-1237.97,0.00019981,2]
[377822945,1754567441699,-1603.01,0.00019981,2]
[377822947,1754567441709,-400.0,0.00019981,2]
[377822949,1754567441718,-1701.22,0.00019981,2]
[377822951,1754567441727,-400.0,0.00019981,2]
[377822953,1754567441736,-400.0,0.00019981,2]
[377822955,1754567441747,-400.0,0.00019981,2]
[377822957,1754567441756,-2253.41,0.00019981,2]
[377822959,1754567441765,-400.0,0.00019981,2]
[377822961,1754567441774,-400.0,0.00019981,2]
[377822962,1754567441783,-400.0,0.00019981,2]
[377822964,1754567441792,-1921.41,0.00019981,2]
[377822966,1754567441801,-400.0,0.00019981,2]
[377822968,1754567441811,-1829.75,0.00019981,2]
[377822970,1754567441821,-1420.45,0.00019981,2]
[377822972,1754567441831,-400.0,0.00019981,2]
[377822974,1754567441840,-400.0,0.00019981,2]
[377822976,1754567441850,-1139.27,0.00019981,2]
[377822978,1754567441860,-1418.75,0.00019981,2]
[377822980,1754567441870,-497.12845441,0.00019981,2]
[377822982,1754567441879,-1471.36,0.00019981,2]
[377822984,1754567441888,-1687.52,0.00019981,2]
[377822986,1754567441898,-400.0,0.00019981,2]
[377822988,1754567441907,-400.0,0.00019981,2]
[377822990,1754567441917,-783.71,0.00019981,2]
[377822992,1754567441927,-400.0,0.00019981,2]
[377822994,1754567441937,-400.0,0.00019981,2]
[377822996,1754567441947,-400.0,0.00019981,2]
[377822998,1754567441956,-400.0,0.00019981,2]
[377823000,1754567441967,-1601.61,0.00019981,2]
[377823002,1754567441977,-400.0,0.00019981,2]
[377823004,1754567441987,-400.0,0.00019981,2]
[377823006,1754567441997,-400.0,0.00019981,2]
[377823008,1754567442006,-400.0,0.00019981,2]
[377823010,1754567442016,-1994.55,0.00019981,2]
[377823012,1754567442027,-185.63076896,0.00019981,2]
[377823014,1754567442038,-981.64,0.00019981,2]
[377823016,1754567442049,-1771.73,0.00019981,2]
[377823018,1754567442061,-296.43913479,0.00019981,2]
[377823020,1754567442072,-400.0,0.00019981,2]
[377823022,1754567442085,-400.0,0.00019981,2]
[377823023,1754567442095,-1304.23,0.00019981,2]
[377823024,1754567442106,-1608.47,0.00019981,2]
[377823025,1754567442117,-400.0,0.00019981,2]
[377823027,1754567442127,-400.0,0.00019981,2]
[377823029,1754567442137,-400.0,0.00019981,2]
[377823031,1754567442148,-306.59235003,0.00019981,2]
[377823033,1754567442158,-491.52,0.00019981,2]
[377823035,1754567442169,-1785.7,0.00019981,2]
[377823036,1754567442179,-500.0,0.00019981,2]
[377823039,1754567442190,-488.29,0.00019981,2]
[377823041,1754567442201,-400.0,0.00019981,2]
[377823043,1754567442212,-2983.13,0.00019981,2]
[377823044,1754567442222,-1060.34,0.00019981,2]
[377823046,1754567442234,-400.0,0.00019981,2]
[377823048,1754567442245,-400.0,0.00019981,2]
[377823050,1754567442261,-400.0,0.00019981,2]
[377823052,1754567442274,-518.85,0.00019981,2]
[377823055,1754567442287,-400.0,0.00019981,2]
[377823057,1754567442299,-1970.81,0.00019981,2]
[377823059,1754567442311,-2144.22,0.00019981,2]
[377823061,1754567442323,-562.7,0.00019981,2]
[377823063,1754567442334,-400.0,0.00019981,2]
[377823065,1754567442346,-615.72,0.00019981,2]
[377823066,1754567442357,-400.0,0.00019981,2]
[377823068,1754567442369,-497.65,0.00019981,2]
[377823070,1754567442380,-400.0,0.00019981,2]
[377823072,1754567442391,-1812.51,0.00019981,2]
[377823074,1754567442402,-400.0,0.00019981,2]
[377823076,1754567442414,-400.0,0.00019981,2]
[377823078,1754567442424,-402.75785986,0.00019981,2]
[377823080,1754567442435,-400.0,0.00019981,2]
[377823082,1754567442450,-562.3,0.00019981,2]
[377823084,1754567442460,-400.0,0.00019981,2]
[377823086,1754567442472,-1627.55,0.00019981,2]
[377823088,1754567442483,-888.93,0.00019981,2]
[377823090,1754567442495,-1681.82,0.00019981,2]
[377823092,1754567442517,-400.0,0.00019981,2]
[377823094,1754567442528,-400.0,0.00019981,2]
[377823096,1754567442540,-400.0,0.00019981,2]
[377823098,1754567442552,-400.0,0.00019981,2]
[377823100,1754567442563,-448.93,0.00019981,2]
[377823102,1754567442574,-409.12555293,0.00019981,2]
[377823104,1754567442588,-400.0,0.00019981,2]
[377823106,1754567442600,-400.0,0.00019981,2]
[377823108,1754567442612,-1350.57,0.00019981,2]
[377823110,1754567442623,-400.0,0.00019981,2]
[377823112,1754567442634,-1432.77,0.00019981,2]
[377823114,1754567442645,-400.0,0.00019981,2]
[377823116,1754567442656,-1401.97,0.00019981,2]
[377823118,1754567442667,-2778.92,0.00019981,2]
[377823120,1754567442678,-400.0,0.00019981,2]
[377823122,1754567442689,-400.0,0.00019981,2]
[377823124,1754567442700,-400.0,0.00019981,2]
[377823126,1754567442711,-438.96,0.00019981,2]
[377823128,1754567442722,-556.44,0.00019981,2]
[377823130,1754567442733,-1639.82,0.00019981,2]
[377823132,1754567442744,-698.13,0.00019981,2]
[377823134,1754567442763,-400.0,0.00019981,2]
[377823136,1754567442773,-783.46,0.00019981,2]
[377823138,1754567442783,-400.0,0.00019981,2]
[377823140,1754567442795,-1378.23,0.00019981,2]
[377823142,1754567442805,-400.0,0.00019981,2]
[377823144,1754567442816,-400.0,0.00019981,2]
[377823146,1754567442827,-400.0,0.00019981,2]
[377823148,1754567442837,-400.0,0.00019981,2]
[377823150,1754567442848,-400.0,0.00019981,2]
[377823152,1754567442858,-681.19,0.00019981,2]
[377823154,1754567442868,-400.0,0.00019981,2]
[377823156,1754567442879,-400.0,0.00019981,2]
[377823158,1754567442889,-1553.89,0.00019981,2]
[377823160,1754567442899,-458.81,0.00019981,2]
[377823162,1754567442909,-400.0,0.00019981,2]
[377823164,1754567442919,-400.0,0.00019981,2]
[377823166,1754567442929,-400.0,0.00019981,2]
[377823168,1754567442940,-400.0,0.00019981,2]
[377823170,1754567442949,-400.0,0.00019981,2]
[377823172,1754567442959,-684.25,0.00019981,2]
[377823174,1754567442969,-1588.79,0.00019981,2]
[377823175,1754567442979,-400.0,0.00019981,2]
[377823177,1754567442989,-151.09566497,0.00019981,2]
[377823180,1754567443003,-400.0,0.00019981,2]
[377823182,1754567443013,-400.0,0.00019981,2]
[377823184,1754567443023,-531.56,0.00019981,2]
[377823186,1754567443034,-2102.6,0.00019981,2]
[377823189,1754567443044,-502.92,0.00019981,2]
[377823190,1754567443054,-400.0,0.00019981,2]
[377823193,1754567443064,-167.63332272,0.00019981,2]
[377823195,1754567443075,-1527.19,0.00019981,2]
[377823197,1754567443085,-400.0,0.00019981,2]
[377823199,1754567443095,-455.96,0.00019981,2]
[377823201,1754567443104,-1311.14,0.00019981,2]
[377823203,1754567443113,-400.0,0.00019981,2]
[377823205,1754567443123,-400.0,0.00019981,2]
[377823207,1754567443132,-680.28,0.00019981,2]
[377823210,1754567443141,-2859.99,0.00019981,2]
[377823212,1754567443151,-1896.26,0.00019981,2]
[377823214,1754567443160,-2285.62,0.00019981,2]
[377823216,1754567443170,-357.83852265,0.00019981,2]
[377823217,1754567443179,-406.2,0.00019981,2]
[377823219,1754567443189,-400.0,0.00019981,2]
[377823221,1754567443199,-641.77,0.00019981,2]
[377823223,1754567443208,-964.96,0.00019981,2]
[377823226,1754567443217,-400.0,0.00019981,2]
[377823227,1754567443226,-724.33,0.00019981,2]
[377823229,1754567443235,-699.46,0.00019981,2]
[377823231,1754567443247,-400.0,0.00019981,2]
[377823232,1754567443257,-1994.52,0.00019981,2]
[377823234,1754567443266,-2220.34,0.00019981,2]
[377823237,1754567443276,-656.38,0.00019981,2]
[377823239,1754567443285,-400.0,0.00019981,2]
[377823241,1754567443295,-1631.11,0.00019981,2]
[377823242,1754567443304,-578.25,0.00019981,2]
[377823245,1754567443313,-430.29,0.00019981,2]
[377823247,1754567443323,-400.0,0.00019981,2]
[377823249,1754567443333,-400.0,0.00019981,2]
[377823251,1754567443342,-449.95,0.00019981,2]
[377823253,1754567443352,-400.0,0.00019981,2]
[377823254,1754567443362,-1140.94,0.00019981,2]
[377823256,1754567443371,-1557.43,0.00019981,2]
[377823258,1754567443381,-1058.13,0.00019981,2]
[377823260,1754567443391,-606.27,0.00019981,2]
[377823262,1754567443400,-400.0,0.00019981,2]
[377823264,1754567443410,-400.0,0.00019981,2]
[377823266,1754567443419,-400.0,0.00019981,2]
[377823269,1754567443428,-2094.64,0.00019981,2]
[377823270,1754567443437,-400.0,0.00019981,2]
[377823272,1754567443448,-1860.84,0.00019981,2]
[377823274,1754567443457,-400.0,0.00019981,2]
[377823276,1754567443466,-400.0,0.00019981,2]
[377823278,1754567443475,-972.01,0.00019981,2]
[377823280,1754567443484,-400.0,0.00019981,2]
[377823282,1754567443499,-400.0,0.00019981,2]
[377823284,1754567443510,-1265.27,0.00019981,2]
[377823286,1754567443519,-739.67,0.00019981,2]
[377823288,1754567443528,-412.24484719,0.00019981,2]
[377823290,1754567443539,-449.34,0.00019981,2]
[377823292,1754567443547,-400.0,0.00019981,2]
[377823294,1754567443558,-400.0,0.00019981,2]
[377823296,1754567443567,-706.52,0.00019981,2]
[377823298,1754567443577,-772.39,0.00019981,2]
[377823300,1754567443588,-674.9,0.00019981,2]
[377823302,1754567443598,-400.0,0.00019981,2]
[377823304,1754567443608,-400.0,0.00019981,2]
[377823305,1754567443617,-400.0,0.00019981,2]
[377823308,1754567443627,-958.47,0.00019981,2]
[377823309,1754567443637,-2392.96,0.00019981,2]
[377823312,1754567443646,-400.0,0.00019981,2]
[377823314,1754567443655,-400.0,0.00019981,2]
[377823317,1754567443665,-400.0,0.00019981,2]
[377823320,1754567443675,-1500.67,0.00019981,2]
[377823323,1754567443684,-400.0,0.00019981,2]
[377823326,1754567443694,-1983.13,0.00019981,2]
[377823329,1754567443703,-400.0,0.00019981,2]
[377823332,1754567443712,-400.0,0.00019981,2]
[377823334,1754567443722,-400.0,0.00019981,2]
[377823336,1754567443731,-2615.37,0.00019981,2]
[377823338,1754567443741,-400.0,0.00019981,2]
[377823340,1754567443753,-1421.44,0.00019981,2]
[377823342,1754567443762,-400.0,0.00019981,2]
[377823344,1754567443771,-400.0,0.00019981,2]
[377823346,1754567443780,-2088.46,0.00019981,2]
[377823348,1754567443790,-400.0,0.00019981,2]
[377823350,1754567443799,-400.0,0.00019981,2]
[377823352,1754567443809,-400.0,0.00019981,2]
[377823354,1754567443819,-3949.85,0.00019981,2]
[377823356,1754567443828,-829.28,0.00019981,2]
[377823358,1754567443838,-1440.11,0.00019981,2]
[377823360,1754567443847,-400.0,0.00019981,2]
[377823363,1754567443856,-400.0,0.00019981,2]
[377823366,1754567443866,-1974.14,0.00019981,2]
[377823369,1754567443875,-400.0,0.00019981,2]
[377823372,1754567443884,-400.0,0.00019981,2]
[377823373,1754567443893,-400.0,0.00019981,2]
[377823375,1754567443902,-405.81,0.00019981,2]
[377823377,1754567443914,-1651.28,0.00019981,2]
[377823379,1754567443923,-1700.4,0.00019981,2]
[377823381,1754567443932,-1654.97,0.00019981,2]
[377823383,1754567443942,-400.0,0.00019981,2]
[377823385,1754567443951,-879.53,0.00019981,2]
[377823387,1754567443960,-441.61,0.00019981,2]
[377823389,1754567443970,-734.88,0.00019981,2]
[377823391,1754567443979,-400.0,0.00019981,2]
[377823393,1754567443988,-400.0,0.00019981,2]
[377823395,1754567443998,-1444.74,0.00019981,2]
[377823397,1754567444008,-400.0,0.00019981,2]
[377823399,1754567444017,-826.41,0.00019981,2]
[377823401,1754567444027,-866.31,0.00019981,2]
[377823403,1754567444037,-400.0,0.00019981,2]
[377823405,1754567444046,-400.0,0.00019981,2]
[377823407,1754567444056,-400.0,0.00019981,2]
[377823409,1754567444065,-400.0,0.00019981,2]
[377823411,1754567444075,-400.0,0.00019981,2]
[377823413,1754567444084,-2911.9,0.00019981,2]
[377823415,1754567444094,-400.0,0.00019981,2]
[377823417,1754567444105,-400.0,0.00019981,2]
[377823419,1754567444115,-675.62,0.00019981,2]
[377823421,1754567444124,-451.14,0.00019981,2]
[377823423,1754567444134,-400.0,0.00019981,2]
[377823425,1754567444144,-438.5,0.00019981,2]
[377823427,1754567444154,-718.05,0.00019981,2]
[377823429,1754567444164,-1940.19,0.00019981,2]
[377823431,1754567444173,-400.0,0.00019981,2]
[377823433,1754567444183,-400.0,0.00019981,2]
[377823435,1754567444192,-1578.0,0.00019981,2]
[377823437,1754567444202,-1218.31,0.00019981,2]
[377823439,1754567444212,-415.06,0.00019981,2]
[377823441,1754567444223,-1089.73,0.00019981,2]
[377823443,1754567444232,-1196.33,0.00019981,2]
[377823445,1754567444242,-400.0,0.00019981,2]
[377823447,1754567444256,-4243.35,0.00019981,2]
[377823449,1754567444269,-400.0,0.00019981,2]
[377823451,1754567444279,-1223.01,0.00019981,2]
[377823453,1754567444289,-1659.7,0.00019981,2]
[377823455,1754567444299,-250.33845957,0.00019981,2]
[377823457,1754567444308,-400.0,0.00019981,2]
[377823459,1754567444318,-400.0,0.00019981,2]
[377823461,1754567444328,-1003.21,0.00019981,2]
[377823463,1754567444337,-400.0,0.00019981,2]
[377823465,1754567444347,-400.0,0.00019981,2]
[377823467,1754567444357,-929.18,0.00019981,2]
[377823469,1754567444368,-1036.3,0.00019981,2]
[377823471,1754567444378,-781.29,0.00019981,2]
[377823473,1754567444387,-1774.61,0.00019981,2]
[377823475,1754567444396,-670.23,0.00019981,2]
[377823476,1754567444406,-1425.08,0.00019981,2]
[377823478,1754567444416,-400.0,0.00019981,2]
[377823480,1754567444425,-637.0,0.00019981,2]
[377823482,1754567444435,-727.06,0.00019981,2]
[377823484,1754567444444,-400.0,0.00019981,2]
[377823486,1754567444454,-400.0,0.00019981,2]
[377823488,1754567444464,-400.0,0.00019981,2]
[377823490,1754567444474,-1389.84,0.00019981,2]
[377823492,1754567444483,-673.8,0.00019981,2]
[377823494,1754567444494,-414.21675403,0.00019981,2]
[377823496,1754567444508,-400.0,0.00019981,2]
[377823498,1754567444519,-1506.47,0.00019981,2]
[377823500,1754567444528,-400.0,0.00019981,2]
[377823502,1754567444539,-1304.28,0.00019981,2]
[377823504,1754567444548,-400.0,0.00019981,2]
[377823506,1754567444558,-408.69,0.00019981,2]
[377823508,1754567444568,-1031.92,0.00019981,2]
[377823510,1754567444578,-400.0,0.00019981,2]
[377823512,1754567444589,-400.0,0.00019981,2]
[377823514,1754567444598,-383.07823052,0.00019982,2]
[377823516,1754567444607,-400.0,0.00019982,2]
[377823518,1754567444617,-401.93961271,0.00019982,2]
[377823520,1754567444628,-400.0,0.00019982,2]
[377823522,1754567444638,-400.0,0.00019982,2]
[377823524,1754567444648,-401.9064243,0.00019982,2]
[377823526,1754567444658,-400.0,0.00019982,2]
[377823528,1754567444668,-400.0,0.00019982,2]
[377823530,1754567444678,-400.0,0.00019982,2]
[377823532,1754567444688,-400.0,0.00019982,2]
[377823555,1754567444920,-2745.26,0.00019982,2]
[377823559,1754567444947,-1468.88,0.00019982,2]
[377823561,1754567444957,-3035.88,0.00019982,2]
[377823563,1754567444967,-1354.2,0.00019982,2]
[377823565,1754567444977,-500.0,0.00019982,2]
[377823567,1754567444987,-1107.1,0.00019982,2]
[377823569,1754567445000,-400.0,0.00019982,2]
[377823571,1754567445010,-4522.73,0.00019982,2]
[377823573,1754567445020,-1039.06,0.00019982,2]
[377823575,1754567445030,-951.83,0.00019982,2]
[377823576,1754567445040,-400.0,0.00019982,2]
[377823578,1754567445050,-1408.99,0.00019982,2]
[377823580,1754567445059,-3637.61,0.00019982,2]
[377823582,1754567445069,-622.87,0.00019982,2]
[377823584,1754567445078,-3728.51,0.00019982,2]
[377823586,1754567445091,-471.41,0.00019982,2]
[377823588,1754567445101,-1375.91,0.00019982,2]
[377823590,1754567445110,-466.58,0.00019982,2]
[377823592,1754567445120,-2184.25,0.00019982,2]
[377823594,1754567445129,-2146.2,0.00019982,2]
[377823596,1754567445139,-1051.57,0.00019982,2]
[377823598,1754567445148,-10613.01,0.00019982,2]
[377823600,1754567445157,-1969.68,0.00019982,2]
[377823602,1754567445167,-816.67,0.00019982,2]
[377823604,1754567445176,-777.46,0.00019982,2]
[377823606,1754567445185,-1017.66,0.00019982,2]
[377823608,1754567445194,-739.67,0.00019982,2]
[377823610,1754567445203,-400.0,0.00019982,2]
[377823612,1754567445214,-1182.27,0.00019982,2]
[377823614,1754567445225,-2202.17,0.00019982,2]
[377823616,1754567445236,-400.0,0.00019982,2]
[377823618,1754567445245,-400.0,0.00019982,2]
[377823620,1754567445260,-1770.65,0.00019982,2]
[377823622,1754567445269,-400.0,0.00019982,2]
[377823624,1754567445279,-2530.42,0.00019982,2]
[377823626,1754567445288,-2773.68,0.00019982,2]
[377823627,1754567445297,-2385.77,0.00019982,2]
[377823629,1754567445307,-400.0,0.00019982,2]
[377823631,1754567445316,-1482.26,0.00019982,2]
[377823633,1754567445326,-1529.18,0.00019982,2]
[377823635,1754567445337,-2144.3,0.00019982,2]
[377823637,1754567445346,-2273.87,0.00019982,2]
[377823639,1754567445356,-2445.13,0.00019982,2]
[377823641,1754567445366,-2469.21,0.00019982,2]
[377823643,1754567445375,-2573.71,0.00019982,2]
[377823645,1754567445385,-447.2127474,0.00019982,2]
[377823647,1754567445395,-1498.52,0.00019982,2]
[377823649,1754567445404,-1498.52,0.00019982,2]
[377823651,1754567445415,-1382.29,0.00019982,2]
[377823653,1754567445431,-1875.23,0.00019982,2]
[377823655,1754567445442,-1836.03,0.00019982,2]
[377823657,1754567445452,-2256.15,0.00019982,2]
[377823659,1754567445461,-781.29,0.00019982,2]
[377823661,1754567445471,-400.0,0.00019982,2]
[377823663,1754567445480,-1914.75,0.00019982,2]
[377823665,1754567445490,-824.52,0.00019982,2]
[377823667,1754567445500,-400.0,0.00019982,2]
[377823669,1754567445511,-2622.12,0.00019982,2]
[377823671,1754567445525,-5157.33,0.00019982,2]
[377823672,1754567445535,-2035.7,0.00019982,2]
[377823675,1754567445545,-1535.53,0.00019982,2]
[377823677,1754567445555,-400.0,0.00019983,2]
[377823678,1754567445565,-657.82,0.00019983,2]
[377823680,1754567445574,-400.0,0.00019983,2]
[377823682,1754567445584,-400.0,0.00019983,2]
[377823684,1754567445594,-711.89,0.00019983,2]
[377823686,1754567445603,-400.0,0.00019983,2]
[377823688,1754567445612,-471.32,0.00019983,2]
[377823690,1754567445622,-400.0,0.00019983,2]
[377823692,1754567445631,-1154.69,0.00019983,2]
[377823694,1754567445641,-400.0,0.00019983,2]
[377823696,1754567445650,-771.13,0.00019983,2]
[377823698,1754567445660,-400.0,0.00019983,2]
[377823700,1754567445669,-400.0,0.00019983,2]
[377823702,1754567445678,-400.0,0.00019983,2]
[377823704,1754567445687,-400.0,0.00019983,2]
[377823706,1754567445697,-400.0,0.00019983,2]
[377823708,1754567445706,-959.44,0.00019983,2]
[377823710,1754567445716,-400.0,0.00019983,2]
[377823712,1754567445734,-400.0,0.00019983,2]
[377823714,1754567445745,-1175.72,0.00019983,2]
[377823716,1754567445762,-1279.63,0.00019983,2]
[377823718,1754567445771,-400.0,0.00019983,2]
[377823720,1754567445781,-400.0,0.00019983,2]
[377823722,1754567445791,-767.25,0.00019983,2]
[377823724,1754567445800,-797.1,0.00019983,2]
[377823726,1754567445810,-400.0,0.00019983,2]
[377823728,1754567445818,-715.13,0.00019983,2]
[377823729,1754567445826,-618.65,0.00019983,2]
[377823730,1754567445833,-1523.74,0.00019983,2]
[377823731,1754567445843,-456.1,0.00019983,2]
[377823732,1754567445851,-495.45,0.00019983,2]
[377823733,1754567445859,-964.46,0.00019983,2]
[377823752,1754567446076,-454.31,0.00019983,2]
[377823756,1754567446085,-695.54,0.00019983,2]
[377823760,1754567446095,-865.6,0.00019983,2]
[377823764,1754567446104,-857.1,0.00019983,2]
[377823767,1754567446114,-499.48,0.00019983,2]
[377823770,1754567446123,-400.0,0.00019983,2]
[377823773,1754567446132,-428.33,0.00019983,2]
[377823777,1754567446142,-714.36,0.00019983,2]
[377823780,1754567446151,-1957.72,0.00019983,2]
[377823782,1754567446160,-151.0,0.00019983,2]
[377823784,1754567446169,-400.0,0.00019983,2]
[377823786,1754567446178,-1398.35,0.00019983,2]
[377823788,1754567446188,-151.0,0.00019983,2]
[377823790,1754567446197,-400.0,0.00019983,2]
[377823792,1754567446206,-400.0,0.00019983,2]
[377823794,1754567446216,-400.0,0.00019983,2]
[377823796,1754567446225,-406.76,0.00019983,2]
[377823798,1754567446235,-563.15,0.00019983,2]
[377823800,1754567446244,-919.36,0.00019983,2]
[377823802,1754567446256,-1467.94,0.00019983,2]
[377823805,1754567446266,-151.0,0.00019983,2]
[377823806,1754567446275,-400.0,0.00019983,2]
[377823809,1754567446285,-151.0,0.00019983,2]
[377823810,1754567446295,-796.97,0.00019983,2]
[377823812,1754567446305,-413.43066851,0.00019983,2]
[377823815,1754567446314,-473.98,0.00019983,2]
[377823817,1754567446324,-1452.25,0.00019983,2]
[377823818,1754567446333,-848.47,0.00019983,2]
[377823821,1754567446342,-500.0,0.00019983,2]
[377823823,1754567446352,-400.0,0.00019983,2]
[377823824,1754567446361,-484.09,0.00019983,2]
[377823827,1754567446370,-400.0,0.00019983,2]
[377823829,1754567446379,-427.25,0.00019983,2]
[377823831,1754567446389,-1102.01,0.00019983,2]
[377823833,1754567446398,-484.3,0.00019983,2]
[377823834,1754567446407,-661.79,0.00019983,2]
[377823837,1754567446417,-152.837172,0.00019983,2]
[377823839,1754567446426,-858.9,0.00019983,2]
[377823841,1754567446435,-400.0,0.00019983,2]
[377823842,1754567446445,-862.02,0.00019983,2]
[377823845,1754567446455,-1314.71,0.00019983,2]
[377823847,1754567446464,-1664.73,0.00019983,2]
[377823848,1754567446473,-151.0,0.00019983,2]
[377823850,1754567446486,-643.09,0.00019983,2]
[377823853,1754567446499,-1098.61,0.00019983,2]
[377823855,1754567446509,-1289.25,0.00019983,2]
[377823857,1754567446519,-400.0,0.00019983,2]
[377823859,1754567446527,-1290.96,0.00019983,2]
[377823861,1754567446539,-151.0,0.00019983,2]
[377823863,1754567446548,-400.0,0.00019983,2]
[377823865,1754567446558,-1449.48,0.00019983,2]
[377823867,1754567446567,-863.8,0.00019983,2]
[377823869,1754567446576,-400.0,0.00019983,2]
[377823871,1754567446587,-407.96,0.00019983,2]
[377823873,1754567446597,-514.51,0.00019983,2]
[377823875,1754567446607,-1953.15,0.00019983,2]
[377823877,1754567446616,-151.0,0.00019983,2]
[377823879,1754567446625,-400.0,0.00019983,2]
[377823881,1754567446635,-614.56,0.00019983,2]
[377823883,1754567446644,-438.27,0.00019983,2]
[377823885,1754567446653,-724.59,0.00019983,2]
[377823887,1754567446662,-555.57,0.00019983,2]
[377823889,1754567446672,-400.0,0.00019983,2]
[377823891,1754567446681,-1154.97,0.00019983,2]
[377823893,1754567446690,-924.78,0.00019983,2]
[377823894,1754567446699,-959.3,0.00019983,2]
[377823896,1754567446709,-1667.54,0.00019983,2]
[377823898,1754567446718,-400.0,0.00019983,2]
[377823900,1754567446727,-923.51,0.00019983,2]